Cogmind - Beta 13 @@@ ROGUE MODE // 2024.04.18 @ 17:50:36 Player: AntinDisguise Result: Destroyed by as-24747 with Assembled F-torch Performance ------------- Evolutions (1) 500 Regions Visited (3) 600 Robots Destroyed (29) 145 Value Destroyed (807) 807 Prototype IDs (0) 0 Alien Tech Used (0) 0 Bonus (46) 46 TOTAL SCORE: 2098 Bonus ------- High Alert Combat Kills 46 Cogmind --------- Core Integrity 0/400 Matter 2/300 Energy 100/100 System Corruption 4% Temperature Cool (20) Movement Core (750) Ox14 Location -9/Mines Parts ------- > --- POWER (2) -------- (None) > --- PROPULSION (2) --- (None) > --- UTILITY (3) ------ High-capacity Storage Unit Structural Scanner Utility Shielding (fused) > --- WEAPON (2) ------- Heavy Assault Rifle > --- INVENTORY (20) --- Heavy Assault Rifle Peak State ------------ > --- POWER ------------ Ion Engine Ion Engine > --- PROPULSION ------- Light Treads Light Treads > --- UTILITY ---------- Large Storage Unit Structural Scanner Utility Shielding > --- WEAPON ----------- Mini Grenade Launcher Mini Grenade Launcher > --- INVENTORY -------- Light Treads Improved Treads Heavy Assault Rifle Heavy Assault Rifle Mini Grenade Launcher Mini Grenade Launcher [Rating: 12] Favorites ----------- Power Ion Engine Engine Ion Engine Propulsion Light Treads Treads Light Treads Wheel Compact Wheel Utility Utility Shielding Device Structural Scanner Storage Large Storage Unit Protection Utility Shielding Weapon Mini Grenade Launcher Energy Gun Small Laser Ballistic Gun Heavy Assault Rifle Launcher Mini Grenade Launcher Build | -11 -10 -9 -9 ------- Run | Yrd Mat Mat Min Slots Evolved 2 | . . 2 . Power 1 | . . 1 . Propulsion . | . . . . Utility 1 | . . 1 . Weapon . | . . . . Parts Attached 22 | 6 8 2 6 Power 3 | 1 1 1 . Engine 3 | 1 1 1 . Core . | . . . . Reactor . | . . . . Propulsion 6 | 2 2 . 2 Treads 4 | . 2 . 2 Leg . | . . . . Wheel 2 | 2 . . . Hover . | . . . . Flight . | . . . . Utility 5 | 1 2 1 1 Device 1 | . . 1 . Storage 3 | 1 1 . 1 Processor . | . . . . Hackware . | . . . . Protection 1 | . 1 . . Artifact . | . . . . Weapon 8 | 2 3 . 3 Energy Gun 3 | 2 1 . . Energy Cannon . | . . . . Ballistic Gun 1 | . . . 1 Ballistic Cannon . | . . . . Launcher 4 | . 2 . 2 Special Weapon . | . . . . Impact Weapon . | . . . . Slashing Weapon . | . . . . Piercing Weapon . | . . . . Special Melee Weapon . | . . . . Unidentified Prototypes . | . . . . Parts Lost 11 | . 3 . 8 Power 3 | . 1 . 2 Propulsion 5 | . 1 . 4 Utility . | . . . . Weapon 3 | . 1 . 2 Highest Loss Streak 7 | . 2 . 7 To Critical Strikes . | . . . . Average Slot Usage (%) 93 | . 89 97 90 Engine 18 | . 13 22 18 Treads 15 | . 5 22 19 Wheel 6 | . 18 . . Device 6 | . . 8 11 Storage 11 | . 14 11 11 Protection 10 | . 10 11 11 Energy Gun 8 | . 24 . . Launcher 14 | . 1 22 18 Naked Turns . | . . . . Heaviest Build 54 | 13 28 34 54 Greatest Support 43 | 32 40 40 43 Greatest Overweight (x) 14 | . 1 . 14 Average Overweight (x) . | . . . . Largest Inventory Capacity 20 | 8 15 15 20 Average Capacity 13 | 6 10 15 18 Most Carried 7 | 4 7 6 6 Average Carried 4 | 1 4 4 3 Final Capacity 20 | 8 15 15 20 Final Carried 6 | 2 5 6 1 Class Distribution -------------------- 100% | Mutant Dominant Class ---------------- Mutant | -10/Materials Mutant | -9/Materials Mutant | -9/Mines Resources | -11 -10 -9 -9 ----------- Run | Yrd Mat Mat Min Matter Collected 522 | 185 90 190 57 Remotely . | . . . . Salvage Created 795 | . 153 566 76 Parts 55 | . 7 47 1 Haulers Intercepted 1 | . . 1 . Recyclers Shooed . | . . . . Parts Field Recycled . | . . . . Retrieved Matter . | . . . . Parts Self-Destructed . | . . . . Prevented . | . . . . Kills | -11 -10 -9 -9 ------- Run | Yrd Mat Mat Min Combat Hostiles Destroyed 26 | . 3 13 10 Guns 3 | . 3 . . AOE 23 | . . 13 10 Classes Destroyed 7 | . 1 5 1 Builder 4 | . . 4 . Hauler 1 | . . 1 . Recycler 3 | . . 3 . Watcher 3 | . . 3 . Grunt 16 | . 3 11 2 Sentry 2 | . . 2 . Assembled 8 | . . . 8 Best Kill Streak 15 | . 2 15 8 Combat Bots Only 8 | . 2 8 8 Max Kills in Single Turn 7 | . 1 7 4 Gunslinging . | . . . . Exploded 4 | . . 2 4 Melee . | . . . . Uniques/NPCs Destroyed . | . . . . Combat | -11 -10 -9 -9 -------- Run | Yrd Mat Mat Min Hostile Shots Fired 102 | . 28 37 37 Missed 27 | . 4 12 11 Damage Taken 1697 | . 305 406 986 Core 503 | . 94 95 314 Absorbed by Shields . | . . . . Redirected to Shielding 23 | . . . 23 Core Remaining (%) 81 | 100 62 . . Volleys Fired 45 | 5 19 14 7 Largest 2 | 2 2 2 2 Hottest 80 | 80 80 60 60 Shots Fired 84 | 10 32 29 13 Gun 41 | 10 30 . 1 Cannon . | . . . . Launcher 43 | . 2 29 12 Special . | . . . . Kinetic 1 | . . . 1 Thermal 27 | 5 22 . . Explosive 43 | . 2 29 12 Electromagnetic 13 | 5 8 . . Robot Hit Streak 7 | 5 7 7 3 Robot Miss Streak 4 | 2 4 1 2 Penetration Max . | . . . . Secondary Targets 1 | . 1 . . Max Gunslinging Chain 1 | . 1 . . Shots Hit Robots 48 | 8 20 15 5 Core Hits 63 | 1 7 34 21 Critical Kills . | . . . . Critical Parts Destroyed . | . . . . Critical Strikes . | . . . . Melee Attacks . | . . . . Impact . | . . . . Slashing . | . . . . Piercing . | . . . . Sneak Attacks . | . . . . Combat Hostiles . | . . . . Follow-up Attacks . | . . . . Damage Inflicted 2596 | 96 228 1605 667 Guns 341 | 96 228 . 17 Cannons . | . . . . Explosions 2255 | . . 1605 650 Melee . | . . . . Ramming . | . . . . Kinetic 17 | . . . 17 Thermal 190 | 42 148 . . Explosive 2255 | . . 1605 650 Electromagnetic 134 | 54 80 . . Impact . | . . . . Slashing . | . . . . Piercing . | . . . . Highest Corruption 4 | . . 4 4 Average Corruption 3 | . . 3 4 Corruption Purged . | . . . . Corruption Blocked . | . . . . Effects 17 | . . 11 6 Message Errors 7 | . . 4 3 Matter Fused 3 | . . 2 1 Heat Flow Errors 2 | . . 2 . Energy Discharges 1 | . . . 1 Parts Fused 2 | . . 2 . Data Loss (minor) 1 | . . . 1 Misfires 1 | . . 1 . Overload Shots . | . . . . Overflow Damage 87 | . . 79 8 Projectiles . | . . . . Explosions 87 | . . 79 8 Melee . | . . . . Knockbacks . | . . . . Impact . | . . . . Kinetic . | . . . . Secondary . | . . . . Self-Inflicted Damage 129 | . . 65 64 Shots 9 | . . 5 4 Rammed . | . . . . Targets Rammed . | . . . . Kicked . | . . . . Crushed . | . . . . Highest Temperature 324 | 72 324 305 21 Average Temperature 99 | 33 152 91 7 Received Heat Transfer 427 | . 192 165 70 Siege Activations . | . . . . Robots Corrupted . | . . . . Combat Hostiles . | . . . . Parts Fried . | . . . . Impact Corruptions . | . . . . Robots Melted . | . . . . Combat Hostiles . | . . . . Parts Melted . | . . . . Heat Transferred 450 | 100 350 . . Parts Sabotaged . | . . . . Parts Stolen . | . . . . Parts Stripped . | . . . . Power Chain Reactions . | . . . . Alert | -11 -10 -9 -9 ------- Run | Yrd Mat Mat Min Peak Influence 685 | . 104 685 298 Initial 195 | . . 43 195 Average 238 | . 39 400 260 Maximum Alert Level 2 | . . 2 1 Low Security (%) 50 | 100 100 29 . Level 1 20 | . . 3 99 Level 2 29 | . . 66 . Level 3 . | . . . . Level 4 . | . . . . Level 5 . | . . . . High Security . | . . . . Max Security . | . . . . Squads Dispatched 1 | . . 1 . Investigation . | . . . . Extermination . | . . . . Reinforcement 1 | . . 1 . Assault . | . . . . Garrison . | . . . . Intercept . | . . . . Searches Triggered . | . . . . Construction Impeded . | . . . . Haulers Reinforced . | . . . . Active Scanning Responses . | . . . . Cargo Convoy Interrupts . | . . . . Stealth | -11 -10 -9 -9 --------- Run | Yrd Mat Mat Min Distress Signals 4 | . 1 3 . Communications Jammed . | . . . . Distress Signals . | . . . . Times Spotted 47 | . 7 18 22 Peak Tracking Total 7 | . 3 5 7 Tactical Retreats 2 | . 1 . 1 Traps | -11 -10 -9 -9 ------- Run | Yrd Mat Mat Min Traps Triggered 2 | . . 2 . Indirectly . | . . . . Trap Hack Attempts . | . . . . Triggered . | . . . . Disarmed . | . . . . Reprogrammed . | . . . . Reused . | . . . . Traps Extracted . | . . . . Installed . | . . . . Triggered . | . . . . Machines | -11 -10 -9 -9 ---------- Run | Yrd Mat Mat Min Machines Disabled 2 | . . 2 . Max in Single Turn 1 | . . 1 . Machines Repaired . | . . . . Machines Dismantled . | . . . . Machines Sabotaged . | . . . . Overloaded Fab Kills . | . . . . Hacking | -11 -10 -9 -9 --------- Run | Yrd Mat Mat Min Machines Accessed 4 | . 2 1 1 Terminals 4 | . 2 1 1 Fabricators . | . . . . Repair Stations . | . . . . Recycling Units . | . . . . Scanalyzers . | . . . . Garrison Access . | . . . . Total Hacks 5 | . 3 1 1 Successful 3 | . 1 1 1 Failed 2 | . 2 . . Catastrophic . | . . . . Database Lockouts . | . . . . Manual . | . . . . Terminals 5 | . 3 1 1 Fabricators . | . . . . Repair Stations . | . . . . Recycling Units . | . . . . Scanalyzers . | . . . . Garrison Access . | . . . . Terminal Hacks 3 | . 1 1 1 Record 1 | . . . 1 Zone Layout 2 | . 1 1 . Fabricator Hacks . | . . . . Repair Station Hacks . | . . . . Recycling Unit Hacks . | . . . . Scanalyzer . | . . . . Garrison Access Hacks . | . . . . Unauthorized Hacks . | . . . . Terminals . | . . . . Fabricators . | . . . . Repair Stations . | . . . . Recycling Units . | . . . . Scanalyzers . | . . . . Garrison Access . | . . . . Data Cores Recovered . | . . . . Used . | . . . . Hacking Detections 1 | . 1 . . Full Trace Events . | . . . . Feedback Events . | . . . . Feedback Blocked . | . . . . Robot Schematics Acquired . | . . . . Robots Built . | . . . . Authchips . | . . . . Time . | . . . . Total Robot Build Rating . | . . . . Part Schematics Acquired . | . . . . Parts Built . | . . . . Authchips . | . . . . Time . | . . . . Total Part Build Rating . | . . . . Parts Repaired . | . . . . Time . | . . . . Parts Recycled . | . . . . Recycled Matter . | . . . . Retrieved Matter . | . . . . Retrieved Components . | . . . . Parts Scanalyzed . | . . . . Part Schematics Acquired . | . . . . Parts Damaged . | . . . . Bothacking | -11 -10 -9 -9 ------------ Run | Yrd Mat Mat Min Used RIF Installer . | . . . . Robots Hacked . | . . . . Non-combat . | . . . . Combat . | . . . . Robot Hacks Applied . | . . . . Relay Couplers Released . | . . . . Fabnet Peak Effective % . | . . . . Robots Rewired . | . . . . Allies Hacked . | . . . . Hacks Repelled . | . . . . Allies | -11 -10 -9 -9 -------- Run | Yrd Mat Mat Min Total Allies . | . . . . Largest Group . | . . . . Highest-Rated Group . | . . . . Highest-Rated Ally . | . . . . Total Orders . | . . . . Ally Attacks . | . . . . Total Damage . | . . . . Kills . | . . . . Allies Corrupted . | . . . . Allies Melted . | . . . . Intel | -11 -10 -9 -9 ------- Run | Yrd Mat Mat Min Robot Analysis Total . | . . . . Derelict Logs Recovered 1 | . . . 1 Drone Launches . | . . . . Drone Recoveries . | . . . . Exploration | -11 -10 -9 -9 ------------- Run | Yrd Mat Mat Min Turns Passed 1161 | 68 359 514 220 Spaces Moved 646 | 41 229 289 87 Core 5 | 3 . . 2 Treads 411 | . 37 289 85 Legs . | . . . . Wheels 230 | 38 192 . . Hover . | . . . . Flight . | . . . . Fastest Speed 50 | 50 100 160 160 Average Speed 147 | 96 112 160 222 Slowest Speed 750 | 100 160 160 750 Overloaded Moves . | . . . . Propulsion Burnouts . | . . . . Robots Hopped . | . . . . Cave-ins Triggered . | . . . . Exploration Rate (%) 27 | 3 44 40 21 Regions Visited 3 Branch Regions 1 Pre-discovered Areas 1 | . . . 1 Known Exits Taken . | . . . . Unknown Exits Taken 3 | 1 1 1 . Scrap Searched 1 | . . . 1 Spaces Dug 39 | . 19 20 . Terrain Destroyed 262 | . 19 154 89 Melee . | . . . . Projectile . | . . . . AOE 262 | . 19 154 89 Terrain Rammed . | . . . . Walls Destroyed . | . . . . Machines Disabled . | . . . . Actions | -11 -10 -9 -9 --------- Run | Yrd Mat Mat Min Total 778 | 59 301 314 104 Wait 34 | . 31 3 . Move 643 | 40 228 288 87 Hop . | . . . . Pick Up 25 | 8 11 5 1 Fast Attach . | . . . . Attach 20 | 6 7 2 5 Detach . | . . . . Swap 2 | . 1 . 1 Drop 9 | . 4 2 3 Fire 45 | 5 19 14 7 Melee . | . . . . Ram . | . . . . Kick . | . . . . Crush . | . . . . Escape Stasis . | . . . . Rewire . | . . . . Trap . | . . . . Miscellaneous . | . . . . Route ------- -11/Scrapyard -10/Materials (discovered 2 exits: *Mat / [*Min]) -9/Materials (discovered 3 exits: [*Mat] / *Min x2) -9/Mines (discovered 1 exit: [*Mat]) History --------- Turn | Location | Event 41 | -11/Scrapyard | Discovered new exit (range 12) 69 | -11/Scrapyard | Entered Materials 309 | -10/Materials | Discovered new exit (range 7) 321 | -10/Materials | Build established: Mutant 337 | -10/Materials | Discovered new exit (range 13) 428 | -10/Materials | Entered another Materials area 428 | -9/Materials | Evolved 2 slots: Power x1, Utility x1 493 | -9/Materials | Discovered new exit (range 6) 608 | -9/Materials | Discovered new exit (range 11) 625 | -9/Materials | Destroyed 8 combat bots 711 | -9/Materials | Discovered new exit (range 15) 942 | -9/Materials | Entered Mines 942 | -9/Mines | Discovered new exit (range 12) 947 | -9/Mines | Met a Derelict bent on vengeance 1090 | -9/Mines | Learned location of Storage (-9) 1093 | -9/Mines | Assembled infested the area 1129 | -9/Mines | Core integrity fell below 50% 1142 | -9/Mines | Destroyed 8 combat bots 1145 | -9/Mines | Core integrity fell below 20% 1162 | -9/Mines | Destroyed by as-24747 with Assembled F-torch Last Messages --------------- U-05 Engineer lays Concrete. as-13682 destroyed. The unstable cave ceiling collapses. U-05 Engineer lays Concrete. as-30409 destroyed. U-05 Engineer lays Concrete. The unstable cave ceiling collapses. U-05 Engineer lays Concrete. Imp. Treads destroyed. D-53 Grenadier destroyed. U-05 Engineer lays Concrete. System corrupted: Matter fused (-8). U-05 Engineer lays Concrete. U-05 Engineer builds a Wall. The unstable cave ceiling collapses. U-05 Engineer lays Concrete. The unstable cave ceiling collapses. U-05 Engineer builds a Wall. The unstable cave ceiling collapses. U-05 Engineer lays Concrete. Map ----- +----------------------------------------------------+ | ?????????????????????????????????????????????????? | | ?????????????????????????????????????????????????? | | ?????????????????????????????????????????????????? | | ?????????????????????????????????????????????????? | | ?????????????????????????????????????????????????? | | ?????????????????????????????????????????????????? | | ?????????????????????????????????????????????????? | | ?????????????????????????????????????????????????? | | ?????????????????????????????????????????????????? | | ?????????????????????????????????????????????????? | | ?????????????????????????????????????????????????? | | ?????????????????????????????????????????????????? | | ?????????????????????????????????????????????????? | | ?????????????????????????????????????????????????? | | ?????????????????????????????????????????????????? | | ?????????????????????????????????????????????????? | | ??????????????????## ????????????????????????????? | | ??????????????????## ????????????????????????????? | | ????????????????#### ????????????????????????????? | | ????????????????#### ########???????????????????? | | ???????????????? #########??????????????????? | | ??????????????????## # # ###??????????????????? | | ??????????????????## =% ##??????????????????? | | ??????????????????## a < ##??????????????????? | | ??????????????????### a ###?????????????????? | | ???????????????????### # @ ###?????????????????? | | ????????????????????## #######????????????? | | ????????????????????## #########????###???? | | ????????????????????## # # ### ####????#####?? | | ????????????????###### # ##??? ####?? | | ????????????????###### ##?? ?? | | ????????????????## # # ? #???? | | ????????????????## # # ##???? | | ????????????????## #### u ## # # ?###???? | | ????????????????## ### u # ## ##?????????? | | ????????????????## ??## ##?????????? | | ????????????????## ??### ##?????????? | | ????????????????## ??#### #####%#####??????? | | ??????????????????????### # # # ##"############ | | ???????????????????????## # ######### | | ???????????????????????## ##### #### ## | | ???????????????????????### # ####### ### | | ???????????????????????#### ########?## | | ????????????????????????###########???## | | ?????????????????????????#######??????###### | | ??????????????????????????????????????####### ### | | ?????????????????????????????????????????######### | | ??????????????????????????????????????????##### | | ??????????????????????????????????????????######## | | ????????????????????????????????????????????###### | +----------------------------------------------------+ Best States ------------- Heat Dissipation 28 Energy Generation 15 Energy Capacity 400 Matter Stores 300 Matter Capacity 300 Sight Range 16 Terrain Scan Density 10 Utility Shielding 33 Evasion (%) 40 Recoil Reduction 2 Item Schematics ----------------- None Robot Schematics ------------------ None Fabricated ------------ Nothing Alien Tech Used ----------------- None Achievements -------------- None Challenges ------------ None Game ------ Seed ActiveRagnarokDevice Manual? 0 Play Time 00:12:42 Cumulative 22.6 hours Start 2024.04.18 @ 17:40:18 End 2024.04.18 @ 17:50:36 Sessions 1 Manual Loads 0 Difficulty Rogue Special Mode None Game No. 59 Rogue 57 Adventurer 2 Explorer 0 Win Type - Total 0 Types 0/0/0/0/0/0/0/0/0 Lore% 20 Gallery% 28 Achievement% 21 Wizard Run 0 Options --------- Layout 1 ASCII 0 Keyboard 0 Movement Mouse Keybinds 0 Fullscreen 1 Font 16/SmallcapsGlow Map View 55x38 Zoom Use 71% Tactical HUD 0 Map Filters NONE Filters NONE Steam 1 RUN: 5b8d3ebe-4773-42db-8b46-5c1d5e961203